[Event "Titled Tuesday Blitz April 11 Early 2023"]
[White "morozcoma"]
[Black "Minko, Dmitry"]
[BlackFideId "24188468"]
[WhiteElo "2281"]
[BlackElo "2147"]
[Result "0-1"]
[Round "07"]
[TimeControl "180+2"]
[Date "2023.04.11"]
[WhiteClock "0:02:14"]
[BlackClock "0:00:31"]

1. e4 {[%clk 0:03:00]}  e5 {[%clk 0:02:59]} 2. Nf3 {[%clk 0:03:00]}  Nc6 {[%clk 0:03:00]} 3. Nc3 {[%clk 0:02:59]}  Nf6 {[%clk 0:03:00]} 4. Bb5 {[%clk 0:02:59]}  Nd4 {[%clk 0:03:00]} 5. Nxd4 {[%clk 0:02:59]}  exd4 {[%clk 0:03:01]} 6. e5 {[%clk 0:02:58]}  dxc3 {[%clk 0:03:01]} 7. exf6 {[%clk 0:02:59]}  Qxf6 {[%clk 0:03:01]} 8. dxc3 {[%clk 0:02:59]}  Bc5 {[%clk 0:02:58]} 9. O-O {[%clk 0:02:57]}  O-O {[%clk 0:02:58]} 10. Bxd7 {[%clk 0:02:58]}  Bxd7 {[%clk 0:01:11]} 11. Qxd7 {[%clk 0:02:56]}  Rad8 {[%clk 0:01:11]} 12. Qg4 {[%clk 0:02:54]}  h6 {[%clk 0:01:09]} 13. Bf4 {[%clk 0:02:52]}  Rfe8 {[%clk 0:01:05]} 14. Bxc7 {[%clk 0:02:45]}  Rd2 {[%clk 0:01:03]} 15. Bg3 {[%clk 0:02:36]}  Rxc2 {[%clk 0:00:57]} 16. Rad1 {[%clk 0:02:22]}  Rxb2 {[%clk 0:00:55]} 17. Rd7 {[%clk 0:02:20]}  Rxf2 {[%clk 0:00:32]} 18. Bxf2 {[%clk 0:02:15]}  Qxf2+ {[%clk 0:00:32]} 19. Rxf2 {[%clk 0:02:14]}  Re1# {[%clk 0:00:31]} 0-1


[Site "https://www.chess.com"]

[Event "Titled Tuesday Blitz April 11 Early 2023"]
[White "Mirzoev, Azer"]
[Black "Buscar, Michael"]
[WhiteFideId "13400304"]
[BlackFideId "2603616"]
[WhiteElo "2525"]
[BlackElo "2010"]
[Result "1/2-1/2"]
[Round "07"]
[TimeControl "180+2"]
[Date "2023.04.11"]
[WhiteClock "0:00:19"]
[BlackClock "0:00:24"]

1. c4 {[%clk 0:03:00]}  Nf6 {[%clk 0:02:57]} 2. Nc3 {[%clk 0:03:00]}  e6 {[%clk 0:02:57]} 3. e4 {[%clk 0:03:00]}  d6 {[%clk 0:02:56]} 4. d4 {[%clk 0:02:59]}  Nbd7 {[%clk 0:02:55]} 5. f4 {[%clk 0:02:59]}  e5 {[%clk 0:02:53]} 6. Nf3 {[%clk 0:02:59]}  exd4 {[%clk 0:02:52]} 7. Qxd4 {[%clk 0:02:58]}  c6 {[%clk 0:02:48]} 8. Be3 {[%clk 0:02:57]}  Be7 {[%clk 0:02:46]} 9. O-O-O {[%clk 0:02:54]}  O-O {[%clk 0:02:46]} 10. h3 {[%clk 0:02:54]}  Re8 {[%clk 0:02:42]} 11. g4 {[%clk 0:02:50]}  Nc5 {[%clk 0:02:42]} 12. e5 {[%clk 0:02:41]}  Ne6 {[%clk 0:02:29]} 13. exf6 {[%clk 0:02:36]}  Nxd4 {[%clk 0:02:28]} 14. fxe7 {[%clk 0:02:36]}  Qxe7 {[%clk 0:02:24]} 15. Bxd4 {[%clk 0:02:35]}  f5 {[%clk 0:02:13]} 16. g5 {[%clk 0:02:33]}  Be6 {[%clk 0:02:13]} 17. h4 {[%clk 0:02:30]}  Qf7 {[%clk 0:02:10]} 18. b3 {[%clk 0:02:23]}  a5 {[%clk 0:02:11]} 19. h5 {[%clk 0:02:20]}  a4 {[%clk 0:02:08]} 20. Nxa4 {[%clk 0:02:08]}  Rxa4 {[%clk 0:02:06]} 21. bxa4 {[%clk 0:02:08]}  Bxc4 {[%clk 0:02:06]} 22. g6 {[%clk 0:01:59]}  Qd5 {[%clk 0:02:04]} 23. gxh7+ {[%clk 0:01:58]}  Kxh7 {[%clk 0:02:01]} 24. Bg2 {[%clk 0:01:26]}  Qa5 {[%clk 0:01:49]} 25. Rd2 {[%clk 0:01:21]}  Qxa4 {[%clk 0:01:39]} 26. Re1 {[%clk 0:01:11]}  Rxe1+ {[%clk 0:01:30]} 27. Nxe1 {[%clk 0:01:11]}  Bxa2 {[%clk 0:01:29]} 28. Bf1 {[%clk 0:00:56]}  Bb3 {[%clk 0:01:20]} 29. Bd3 {[%clk 0:00:50]}  Be6 {[%clk 0:01:12]} 30. Nc2 {[%clk 0:00:45]}  c5 {[%clk 0:01:00]} 31. Be3 {[%clk 0:00:44]}  b5 {[%clk 0:00:56]} 32. Rg2 {[%clk 0:00:42]}  b4 {[%clk 0:00:47]} 33. Rg6 {[%clk 0:00:41]}  c4 {[%clk 0:00:31]} 34. Be2 {[%clk 0:00:27]}  Bd5 {[%clk 0:00:22]} 35. Bd4 {[%clk 0:00:25]}  Be4 {[%clk 0:00:22]} 36. Rxg7+ {[%clk 0:00:25]}  Kh6 {[%clk 0:00:23]} 37. Rg6+ {[%clk 0:00:26]}  Kh7 {[%clk 0:00:23]} 38. Rg7+ {[%clk 0:00:19]}  Kh6 {[%clk 0:00:24]} 39. Rg6+ {[%clk 0:00:19]}  Kh7 {[%clk 0:00:24]} 40. Rg7+ {[%clk 0:00:19]} 1/2-1/2


[Site "https://www.chess.com"]

[Event "Titled Tuesday Blitz April 11 Early 2023"]
[White "Ratnakaran, K."]
[Black "Matveeva, Olga"]
[WhiteFideId "5005507"]
[BlackFideId "24107018"]
[WhiteElo "2345"]
[BlackElo "2056"]
[Result "1-0"]
[Round "07"]
[TimeControl "180+2"]
[Date "2023.04.11"]
[WhiteClock "0:01:40"]
[BlackClock "0:00:06"]

1. e4 {[%clk 0:03:00]}  e6 {[%clk 0:02:59]} 2. d4 {[%clk 0:03:00]}  d5 {[%clk 0:02:59]} 3. Nd2 {[%clk 0:03:00]}  c5 {[%clk 0:02:58]} 4. Ngf3 {[%clk 0:02:58]}  cxd4 {[%clk 0:02:57]} 5. Nxd4 {[%clk 0:02:58]}  Nc6 {[%clk 0:02:57]} 6. Nxc6 {[%clk 0:02:58]}  bxc6 {[%clk 0:02:56]} 7. Bd3 {[%clk 0:02:59]}  Bd6 {[%clk 0:02:55]} 8. O-O {[%clk 0:02:58]}  e5 {[%clk 0:02:49]} 9. c4 {[%clk 0:02:55]}  d4 {[%clk 0:02:48]} 10. Rb1 {[%clk 0:02:53]}  Ne7 {[%clk 0:02:41]} 11. b4 {[%clk 0:02:52]}  O-O {[%clk 0:02:39]} 12. c5 {[%clk 0:02:52]}  Bc7 {[%clk 0:02:38]} 13. Nc4 {[%clk 0:02:52]}  f5 {[%clk 0:02:34]} 14. f4 {[%clk 0:02:50]}  fxe4 {[%clk 0:02:29]} 15. Bxe4 {[%clk 0:02:49]}  exf4 {[%clk 0:02:29]} 16. Rb3 {[%clk 0:02:43]}  Bf5 {[%clk 0:02:24]} 17. Bxf5 {[%clk 0:02:39]}  Nxf5 {[%clk 0:02:24]} 18. Rh3 {[%clk 0:02:37]}  Ne3 {[%clk 0:02:14]} 19. Qd3 {[%clk 0:02:34]}  g6 {[%clk 0:02:10]} 20. Rff3 {[%clk 0:02:33]}  Qd5 {[%clk 0:02:05]} 21. Nd6 {[%clk 0:02:26]}  Bxd6 {[%clk 0:01:56]} 22. cxd6 {[%clk 0:02:27]}  Qxd6 {[%clk 0:01:50]} 23. Rf2 {[%clk 0:02:12]}  Qxb4 {[%clk 0:01:38]} 24. Bd2 {[%clk 0:02:03]}  Qa4 {[%clk 0:01:18]} 25. Re2 {[%clk 0:01:58]}  Rad8 {[%clk 0:01:01]} 26. Rf3 {[%clk 0:01:55]}  c5 {[%clk 0:00:41]} 27. h4 {[%clk 0:01:55]}  c4 {[%clk 0:00:39]} 28. Qe4 {[%clk 0:01:54]}  Qd1+ {[%clk 0:00:36]} 29. Kh2 {[%clk 0:01:49]}  Qxe2 {[%clk 0:00:34]} 30. Qe6+ {[%clk 0:01:46]}  Rf7 {[%clk 0:00:33]} 31. Bxe3 {[%clk 0:01:45]}  dxe3 {[%clk 0:00:31]} 32. h5 {[%clk 0:01:45]}  Kg7 {[%clk 0:00:23]} 33. Qe5+ {[%clk 0:01:41]}  Kg8 {[%clk 0:00:17]} 34. hxg6 {[%clk 0:01:40]}  hxg6 {[%clk 0:00:16]} 35. Rh3 {[%clk 0:01:41]}  Rh7 {[%clk 0:00:13]} 36. Qe6+ {[%clk 0:01:41]}  Kh8 {[%clk 0:00:08]} 37. Qf6+ {[%clk 0:01:41]}  Kg8 {[%clk 0:00:06]} 38. Qxd8+ {[%clk 0:01:40]}  Kg7 {[%clk 0:00:06]} 39. Qe7+ {[%clk 0:01:40]} 1-0


[Site "https://www.chess.com"]

[Event "Titled Tuesday Blitz April 11 Early 2023"]
[White "Melian, Juan Sebastian"]
[Black "Fuzesabonyilaci"]
[WhiteFideId "3706575"]
[WhiteElo "2035"]
[BlackElo "2336"]
[Result "1-0"]
[Round "07"]
[TimeControl "180+2"]
[Date "2023.04.11"]
[WhiteClock "0:00:06"]
[BlackClock "0:00:03"]

1. d4 {[%clk 0:03:00]}  d5 {[%clk 0:02:50]} 2. Nf3 {[%clk 0:02:59]}  Nf6 {[%clk 0:02:47]} 3. c4 {[%clk 0:02:48]}  dxc4 {[%clk 0:02:46]} 4. e3 {[%clk 0:02:49]}  e6 {[%clk 0:02:43]} 5. Bxc4 {[%clk 0:02:49]}  a6 {[%clk 0:02:43]} 6. O-O {[%clk 0:02:48]}  c5 {[%clk 0:02:43]} 7. Nc3 {[%clk 0:02:41]}  b5 {[%clk 0:02:37]} 8. Bd3 {[%clk 0:02:38]}  Bb7 {[%clk 0:02:31]} 9. Qe2 {[%clk 0:01:48]}  Nbd7 {[%clk 0:02:28]} 10. e4 {[%clk 0:01:45]}  cxd4 {[%clk 0:02:25]} 11. Nxd4 {[%clk 0:01:41]}  Qb6 {[%clk 0:02:21]} 12. Be3 {[%clk 0:01:40]}  Bc5 {[%clk 0:02:21]} 13. Nc2 {[%clk 0:01:31]}  Bxe3 {[%clk 0:02:09]} 14. Nxe3 {[%clk 0:01:32]}  b4 {[%clk 0:01:51]} 15. Na4 {[%clk 0:01:31]}  Qc6 {[%clk 0:01:51]} 16. b3 {[%clk 0:01:24]}  Nxe4 {[%clk 0:01:45]} 17. Rac1 {[%clk 0:01:13]}  Nc3 {[%clk 0:01:22]} 18. Qg4 {[%clk 0:01:06]}  Qd6 {[%clk 0:01:05]} 19. Nxc3 {[%clk 0:00:35]}  Qxd3 {[%clk 0:01:03]} 20. Qxg7 {[%clk 0:00:29]}  Ke7 {[%clk 0:00:55]} 21. Rfd1 {[%clk 0:00:15]}  Qg6 {[%clk 0:00:55]} 22. Qd4 {[%clk 0:00:15]}  Bc6 {[%clk 0:00:31]} 23. Qxb4+ {[%clk 0:00:15]}  Kf6 {[%clk 0:00:29]} 24. Ne2 {[%clk 0:00:11]}  Bb5 {[%clk 0:00:21]} 25. Ng3 {[%clk 0:00:07]}  Kg7 {[%clk 0:00:20]} 26. a4 {[%clk 0:00:07]}  Nf6 {[%clk 0:00:16]} 27. axb5 {[%clk 0:00:07]}  axb5 {[%clk 0:00:16]} 28. Qxb5 {[%clk 0:00:07]}  h5 {[%clk 0:00:16]} 29. Qe5 {[%clk 0:00:07]}  h4 {[%clk 0:00:16]} 30. Ngf1 {[%clk 0:00:06]}  Rh5 {[%clk 0:00:15]} 31. Qb2 {[%clk 0:00:05]}  Rb8 {[%clk 0:00:14]} 32. Rd4 {[%clk 0:00:06]}  h3 {[%clk 0:00:14]} 33. Rg4 {[%clk 0:00:06]}  Rg5 {[%clk 0:00:13]} 34. Rxg5 {[%clk 0:00:06]}  Qxg5 {[%clk 0:00:14]} 35. g3 {[%clk 0:00:07]}  Qh5 {[%clk 0:00:13]} 36. Qd4 {[%clk 0:00:07]}  Qf3 {[%clk 0:00:12]} 37. Qf4 {[%clk 0:00:07]}  Qb7 {[%clk 0:00:11]} 38. b4 {[%clk 0:00:06]}  Rd8 {[%clk 0:00:10]} 39. b5 {[%clk 0:00:05]}  Rd3 {[%clk 0:00:10]} 40. Qg5+ {[%clk 0:00:05]}  Kf8 {[%clk 0:00:09]} 41. Qxf6 {[%clk 0:00:06]}  Rb3 {[%clk 0:00:05]} 42. Qd8+ {[%clk 0:00:05]}  Kg7 {[%clk 0:00:06]} 43. Qg5+ {[%clk 0:00:06]}  Kf8 {[%clk 0:00:06]} 44. Rd1 {[%clk 0:00:06]}  Ke8 {[%clk 0:00:03]} 45. Rd8# {[%clk 0:00:06]} 1-0


[Site "https://www.chess.com"]

[Event "Titled Tuesday Blitz April 11 Early 2023"]
[White "Krsnik Cohar, Ivan Vihor"]
[Black "Novikova, Galina"]
[WhiteFideId "14520044"]
[BlackFideId "4157095"]
[WhiteElo "2414"]
[BlackElo "1953"]
[Result "1-0"]
[Round "07"]
[TimeControl "180+2"]
[Date "2023.04.11"]
[WhiteClock "0:00:29"]
[BlackClock "0:00:03"]

1. d4 {[%clk 0:02:51]}  e6 {[%clk 0:03:00]} 2. Nf3 {[%clk 0:02:51]}  f5 {[%clk 0:02:59]} 3. c3 {[%clk 0:02:32]}  Nf6 {[%clk 0:02:59]} 4. Bg5 {[%clk 0:02:29]}  Be7 {[%clk 0:02:59]} 5. Nbd2 {[%clk 0:02:29]}  O-O {[%clk 0:03:00]} 6. Bxf6 {[%clk 0:02:29]}  Bxf6 {[%clk 0:03:01]} 7. e4 {[%clk 0:02:29]}  d6 {[%clk 0:03:00]} 8. Bc4 {[%clk 0:02:28]}  Kh8 {[%clk 0:02:56]} 9. O-O {[%clk 0:02:27]}  Nc6 {[%clk 0:02:44]} 10. exf5 {[%clk 0:02:27]}  exf5 {[%clk 0:02:45]} 11. Re1 {[%clk 0:02:26]}  Ne7 {[%clk 0:02:39]} 12. Qb3 {[%clk 0:02:24]}  Ng6 {[%clk 0:02:37]} 13. Be6 {[%clk 0:02:23]}  Nf4 {[%clk 0:02:30]} 14. Bxc8 {[%clk 0:02:23]}  Rxc8 {[%clk 0:02:24]} 15. g3 {[%clk 0:02:23]}  Ng6 {[%clk 0:02:19]} 16. Qxb7 {[%clk 0:02:17]}  Rb8 {[%clk 0:02:18]} 17. Qxa7 {[%clk 0:02:18]}  Rxb2 {[%clk 0:02:17]} 18. Nc4 {[%clk 0:02:18]}  Rc2 {[%clk 0:02:10]} 19. Rac1 {[%clk 0:02:16]}  Rxc1 {[%clk 0:02:11]} 20. Rxc1 {[%clk 0:02:17]}  f4 {[%clk 0:02:11]} 21. Qb7 {[%clk 0:02:11]}  fxg3 {[%clk 0:02:10]} 22. hxg3 {[%clk 0:02:11]}  Bg5 {[%clk 0:01:59]} 23. Re1 {[%clk 0:02:01]}  d5 {[%clk 0:01:23]} 24. Nce5 {[%clk 0:01:57]}  Nxe5 {[%clk 0:01:23]} 25. Nxe5 {[%clk 0:01:55]}  Bd2 {[%clk 0:01:21]} 26. Rd1 {[%clk 0:01:40]}  Bxc3 {[%clk 0:01:20]} 27. Rd3 {[%clk 0:01:39]}  Ba5 {[%clk 0:01:07]} 28. a4 {[%clk 0:01:27]}  Bb6 {[%clk 0:01:01]} 29. Kg2 {[%clk 0:01:17]}  Qa8 {[%clk 0:00:47]} 30. Rf3 {[%clk 0:01:03]}  Rb8 {[%clk 0:00:40]} 31. Qxa8 {[%clk 0:00:47]}  Rxa8 {[%clk 0:00:41]} 32. a5 {[%clk 0:00:45]}  Bxd4 {[%clk 0:00:32]} 33. Nc6 {[%clk 0:00:45]}  Bc5 {[%clk 0:00:29]} 34. Rf5 {[%clk 0:00:44]}  h6 {[%clk 0:00:18]} 35. Rxd5 {[%clk 0:00:44]}  Bd6 {[%clk 0:00:19]} 36. Rb5 {[%clk 0:00:42]}  Kh7 {[%clk 0:00:18]} 37. f4 {[%clk 0:00:42]}  Ra6 {[%clk 0:00:18]} 38. Nd4 {[%clk 0:00:40]}  c5 {[%clk 0:00:14]} 39. Nf5 {[%clk 0:00:40]}  Bc7 {[%clk 0:00:08]} 40. Rxc5 {[%clk 0:00:38]}  Bxa5 {[%clk 0:00:07]} 41. Nh4 {[%clk 0:00:32]}  Bd2 {[%clk 0:00:06]} 42. f5 {[%clk 0:00:31]}  Bg5 {[%clk 0:00:04]} 43. Ng6 {[%clk 0:00:30]}  Rf6 {[%clk 0:00:03]} 44. g4 {[%clk 0:00:29]} 1-0


[Site "https://www.chess.com"]

[Event "Titled Tuesday Blitz April 11 Early 2023"]
[White "Dishman, Stephen"]
[Black "Womacka, Mathias"]
[WhiteFideId "403024"]
[BlackFideId "4611390"]
[WhiteElo "2204"]
[BlackElo "2377"]
[Result "1-0"]
[Round "07"]
[TimeControl "180+2"]
[Date "2023.04.11"]
[WhiteClock "0:00:19"]
[BlackClock "0:00:25"]

1. d4 {[%clk 0:03:00]}  Nf6 {[%clk 0:02:59]} 2. Bg5 {[%clk 0:03:00]}  Ne4 {[%clk 0:02:58]} 3. Bf4 {[%clk 0:03:00]}  c5 {[%clk 0:02:58]} 4. f3 {[%clk 0:03:00]}  Qa5+ {[%clk 0:02:57]} 5. c3 {[%clk 0:03:00]}  Nf6 {[%clk 0:02:57]} 6. d5 {[%clk 0:03:00]}  Qb6 {[%clk 0:02:56]} 7. Bc1 {[%clk 0:03:00]}  e6 {[%clk 0:02:54]} 8. e4 {[%clk 0:03:00]}  exd5 {[%clk 0:02:54]} 9. exd5 {[%clk 0:03:01]}  Bd6 {[%clk 0:02:54]} 10. Na3 {[%clk 0:03:01]}  O-O {[%clk 0:02:53]} 11. Nc4 {[%clk 0:03:00]}  Qc7 {[%clk 0:02:53]} 12. a4 {[%clk 0:02:56]}  Re8+ {[%clk 0:02:52]} 13. Kf2 {[%clk 0:02:55]}  h6 {[%clk 0:02:21]} 14. Ne2 {[%clk 0:02:52]}  b6 {[%clk 0:02:21]} 15. Ng3 {[%clk 0:02:43]}  Ba6 {[%clk 0:02:17]} 16. Nf5 {[%clk 0:02:39]}  Bxc4 {[%clk 0:02:15]} 17. Bxc4 {[%clk 0:02:37]}  Re5 {[%clk 0:02:09]} 18. Nxd6 {[%clk 0:02:32]}  Qxd6 {[%clk 0:02:08]} 19. Bf4 {[%clk 0:02:32]}  Re2+ {[%clk 0:01:55]} 20. Qxe2 {[%clk 0:02:32]}  Qxf4 {[%clk 0:01:56]} 21. g3 {[%clk 0:01:59]}  Qf5 {[%clk 0:01:55]} 22. Rhe1 {[%clk 0:01:55]}  Qh5 {[%clk 0:01:31]} 23. Kg2 {[%clk 0:01:51]}  d6 {[%clk 0:01:30]} 24. Qe7 {[%clk 0:01:41]}  Nbd7 {[%clk 0:01:26]} 25. Qxd6 {[%clk 0:01:41]}  Nf8 {[%clk 0:01:20]} 26. Rad1 {[%clk 0:01:27]}  Ng6 {[%clk 0:01:13]} 27. f4 {[%clk 0:01:13]}  Qg4 {[%clk 0:01:07]} 28. Be2 {[%clk 0:01:08]}  Qf5 {[%clk 0:00:56]} 29. Bd3 {[%clk 0:00:54]}  Qg4 {[%clk 0:00:56]} 30. Bxg6 {[%clk 0:00:46]}  Qxg6 {[%clk 0:00:56]} 31. Re2 {[%clk 0:00:37]}  h5 {[%clk 0:00:48]} 32. Rde1 {[%clk 0:00:35]}  h4 {[%clk 0:00:47]} 33. Qe5 {[%clk 0:00:35]}  hxg3 {[%clk 0:00:47]} 34. hxg3 {[%clk 0:00:35]}  Qg4 {[%clk 0:00:40]} 35. Qg5 {[%clk 0:00:34]}  Qd7 {[%clk 0:00:39]} 36. Re7 {[%clk 0:00:30]}  Qd6 {[%clk 0:00:39]} 37. Qe5 {[%clk 0:00:30]}  Rd8 {[%clk 0:00:36]} 38. Qxd6 {[%clk 0:00:29]}  Rxd6 {[%clk 0:00:37]} 39. R1e5 {[%clk 0:00:28]}  Nxd5 {[%clk 0:00:36]} 40. Rxa7 {[%clk 0:00:25]}  f6 {[%clk 0:00:33]} 41. Re8+ {[%clk 0:00:25]}  Kh7 {[%clk 0:00:32]} 42. Rb8 {[%clk 0:00:23]}  Kg6 {[%clk 0:00:32]} 43. Rbb7 {[%clk 0:00:23]}  Kf5 {[%clk 0:00:32]} 44. Rxg7 {[%clk 0:00:22]}  Ke4 {[%clk 0:00:30]} 45. Rgd7 {[%clk 0:00:19]}  f5 {[%clk 0:00:25]} 46. Rxd6 {[%clk 0:00:19]} 1-0


[Site "https://www.chess.com"]

[Event "Titled Tuesday Blitz April 11 Early 2023"]
[White "Rodchenkov, Sergey D."]
[Black "a-z30"]
[WhiteFideId "4168712"]
[WhiteElo "2277"]
[BlackElo "2314"]
[Result "0-1"]
[Round "07"]
[TimeControl "180+2"]
[Date "2023.04.11"]
[WhiteClock "0:00:01"]
[BlackClock "0:00:12"]

1. e4 {[%clk 0:03:00]}  d6 {[%clk 0:03:00]} 2. d4 {[%clk 0:03:00]}  Nf6 {[%clk 0:03:01]} 3. Nc3 {[%clk 0:03:00]}  g6 {[%clk 0:03:02]} 4. Be3 {[%clk 0:02:57]}  Bg7 {[%clk 0:03:02]} 5. Qd2 {[%clk 0:02:56]}  O-O {[%clk 0:03:02]} 6. O-O-O {[%clk 0:02:45]}  Nc6 {[%clk 0:03:02]} 7. f3 {[%clk 0:02:40]}  e5 {[%clk 0:03:01]} 8. d5 {[%clk 0:02:36]}  Ne7 {[%clk 0:03:00]} 9. h4 {[%clk 0:02:34]}  Nh5 {[%clk 0:02:53]} 10. Nge2 {[%clk 0:02:31]}  f5 {[%clk 0:02:52]} 11. exf5 {[%clk 0:02:28]}  gxf5 {[%clk 0:02:53]} 12. Bh6 {[%clk 0:02:25]}  f4 {[%clk 0:02:51]} 13. Bxg7 {[%clk 0:02:23]}  Kxg7 {[%clk 0:02:52]} 14. Ne4 {[%clk 0:02:23]}  Nf5 {[%clk 0:02:43]} 15. g4 {[%clk 0:02:05]}  fxg3 {[%clk 0:02:39]} 16. Bh3 {[%clk 0:01:54]}  Kh8 {[%clk 0:02:13]} 17. Bg4 {[%clk 0:01:48]}  Nf4 {[%clk 0:01:58]} 18. N2xg3 {[%clk 0:01:40]}  Nxg3 {[%clk 0:01:52]} 19. Nxg3 {[%clk 0:01:41]}  Bxg4 {[%clk 0:01:46]} 20. fxg4 {[%clk 0:01:42]}  Qf6 {[%clk 0:01:43]} 21. g5 {[%clk 0:01:34]}  Qg6 {[%clk 0:01:39]} 22. Rdg1 {[%clk 0:01:26]}  Rf7 {[%clk 0:01:36]} 23. Nf1 {[%clk 0:01:17]}  Qe4 {[%clk 0:01:33]} 24. Ne3 {[%clk 0:01:10]}  Raf8 {[%clk 0:01:18]} 25. Rf1 {[%clk 0:01:06]}  Ng6 {[%clk 0:01:09]} 26. Rfg1 {[%clk 0:00:40]}  Rf2 {[%clk 0:01:06]} 27. Qe1 {[%clk 0:00:40]}  R8f3 {[%clk 0:00:51]} 28. h5 {[%clk 0:00:34]}  Nf4 {[%clk 0:00:38]} 29. Rf1 {[%clk 0:00:16]}  Rxe3 {[%clk 0:00:26]} 30. Qxf2 {[%clk 0:00:15]}  Re2 {[%clk 0:00:25]} 31. Qxe2 {[%clk 0:00:11]}  Qxe2 {[%clk 0:00:20]} 32. g6 {[%clk 0:00:08]}  Kg7 {[%clk 0:00:13]} 33. gxh7 {[%clk 0:00:07]}  Kxh7 {[%clk 0:00:13]} 34. Rfg1 {[%clk 0:00:08]}  Qf3 {[%clk 0:00:06]} 35. h6 {[%clk 0:00:08]}  Ne2+ {[%clk 0:00:05]} 36. Kb1 {[%clk 0:00:08]}  Nxg1 {[%clk 0:00:06]} 37. Rxg1 {[%clk 0:00:09]}  Qxd5 {[%clk 0:00:06]} 38. Rg7+ {[%clk 0:00:08]}  Kxh6 {[%clk 0:00:06]} 39. Rg1 {[%clk 0:00:09]}  Qd4 {[%clk 0:00:06]} 40. Rh1+ {[%clk 0:00:09]}  Kg6 {[%clk 0:00:06]} 41. a3 {[%clk 0:00:10]}  Kf6 {[%clk 0:00:06]} 42. Rh7 {[%clk 0:00:10]}  Qb6 {[%clk 0:00:07]} 43. Rh6+ {[%clk 0:00:10]}  Kf5 {[%clk 0:00:07]} 44. Rh7 {[%clk 0:00:10]}  Ke4 {[%clk 0:00:07]} 45. c3 {[%clk 0:00:08]}  Kd5 {[%clk 0:00:08]} 46. Kc2 {[%clk 0:00:07]}  Kc6 {[%clk 0:00:09]} 47. c4 {[%clk 0:00:07]}  a5 {[%clk 0:00:10]} 48. b3 {[%clk 0:00:07]}  Qd4 {[%clk 0:00:10]} 49. Kc1 {[%clk 0:00:04]}  a4 {[%clk 0:00:09]} 50. b4 {[%clk 0:00:03]}  Qxc4+ {[%clk 0:00:09]} 51. Kb2 {[%clk 0:00:02]}  Qb3+ {[%clk 0:00:10]} 52. Kc1 {[%clk 0:00:02]}  Qxa3+ {[%clk 0:00:11]} 53. Kd1 {[%clk 0:00:01]}  Qxb4 {[%clk 0:00:12]} 0-1


[Site "https://www.chess.com"]

[Event "Titled Tuesday Blitz April 11 Early 2023"]
[White "Prudnykova, Olga"]
[Black "Omariev, Maksim"]
[WhiteFideId "14121093"]
[BlackFideId "4193423"]
[WhiteElo "2113"]
[BlackElo "2446"]
[Result "0-1"]
[Round "07"]
[TimeControl "180+2"]
[Date "2023.04.11"]
[WhiteClock "0:00:29"]
[BlackClock "0:00:04"]

1. e4 {[%clk 0:03:00]}  h5 {[%clk 0:03:00]} 2. d4 {[%clk 0:02:57]}  h4 {[%clk 0:03:01]} 3. h3 {[%clk 0:02:56]}  d5 {[%clk 0:02:30]} 4. exd5 {[%clk 0:02:45]}  Qxd5 {[%clk 0:02:31]} 5. Nc3 {[%clk 0:02:45]}  Qa5 {[%clk 0:02:29]} 6. Bc4 {[%clk 0:02:39]}  Nf6 {[%clk 0:02:27]} 7. Nf3 {[%clk 0:02:38]}  Bf5 {[%clk 0:02:02]} 8. Bd2 {[%clk 0:02:28]}  c6 {[%clk 0:01:38]} 9. Bb3 {[%clk 0:02:07]}  e6 {[%clk 0:01:33]} 10. Ne5 {[%clk 0:01:46]}  Nbd7 {[%clk 0:01:32]} 11. Qe2 {[%clk 0:01:34]}  Nxe5 {[%clk 0:01:30]} 12. dxe5 {[%clk 0:01:35]}  Nd7 {[%clk 0:01:31]} 13. f4 {[%clk 0:01:34]}  Nc5 {[%clk 0:01:26]} 14. Ne4 {[%clk 0:01:16]}  Qb6 {[%clk 0:00:58]} 15. Nxc5 {[%clk 0:01:08]}  Bxc5 {[%clk 0:00:59]} 16. O-O-O {[%clk 0:01:07]}  a5 {[%clk 0:00:56]} 17. a4 {[%clk 0:01:03]}  O-O-O {[%clk 0:00:38]} 18. Rhe1 {[%clk 0:01:01]}  Rd7 {[%clk 0:00:33]} 19. Be3 {[%clk 0:00:56]}  Rxd1+ {[%clk 0:00:30]} 20. Kxd1 {[%clk 0:00:54]}  Rd8+ {[%clk 0:00:30]} 21. Kc1 {[%clk 0:00:55]}  Bxe3+ {[%clk 0:00:16]} 22. Qxe3 {[%clk 0:00:55]}  Qxe3+ {[%clk 0:00:17]} 23. Rxe3 {[%clk 0:00:55]}  Rd4 {[%clk 0:00:18]} 24. Rf3 {[%clk 0:00:52]}  Be4 {[%clk 0:00:17]} 25. Rf2 {[%clk 0:00:52]}  Kc7 {[%clk 0:00:14]} 26. c3 {[%clk 0:00:51]}  Rd8 {[%clk 0:00:13]} 27. Bc2 {[%clk 0:00:51]}  Bxc2 {[%clk 0:00:06]} 28. Kxc2 {[%clk 0:00:52]}  g6 {[%clk 0:00:07]} 29. Rd2 {[%clk 0:00:45]}  Rh8 {[%clk 0:00:04]} 30. Rf2 {[%clk 0:00:40]}  Kb6 {[%clk 0:00:03]} 31. b3 {[%clk 0:00:38]}  Rh5 {[%clk 0:00:03]} 32. Kd3 {[%clk 0:00:37]}  Kc5 {[%clk 0:00:02]} 33. Rf3 {[%clk 0:00:36]}  Rf5 {[%clk 0:00:03]} 34. Ke4 {[%clk 0:00:36]}  b5 {[%clk 0:00:03]} 35. Rd3 {[%clk 0:00:34]}  bxa4 {[%clk 0:00:03]} 36. bxa4 {[%clk 0:00:31]}  g5 {[%clk 0:00:04]} 37. fxg5 {[%clk 0:00:30]}  Rxg5 {[%clk 0:00:05]} 38. Rd7 {[%clk 0:00:27]}  Rg7 {[%clk 0:00:02]} 39. Ra7 {[%clk 0:00:26]}  Kb6 {[%clk 0:00:02]} 40. Rd7 {[%clk 0:00:26]}  Kc5 {[%clk 0:00:02]} 41. Ra7 {[%clk 0:00:26]}  f5+ {[%clk 0:00:03]} 42. exf6 {[%clk 0:00:25]}  Rxa7 {[%clk 0:00:04]} 43. Ke5 {[%clk 0:00:25]}  Kc4 {[%clk 0:00:03]} 44. Kxe6 {[%clk 0:00:25]}  c5 {[%clk 0:00:03]} 45. f7 {[%clk 0:00:24]}  Rxf7 {[%clk 0:00:03]} 46. Kxf7 {[%clk 0:00:25]}  Kxc3 {[%clk 0:00:03]} 47. Kf6 {[%clk 0:00:25]}  Kb4 {[%clk 0:00:04]} 48. g4 {[%clk 0:00:26]}  hxg3 {[%clk 0:00:03]} 49. h4 {[%clk 0:00:26]}  g2 {[%clk 0:00:04]} 50. h5 {[%clk 0:00:27]}  g1=Q {[%clk 0:00:05]} 51. h6 {[%clk 0:00:28]}  Qh2 {[%clk 0:00:05]} 52. h7 {[%clk 0:00:29]}  Qxh7 {[%clk 0:00:04]} 0-1


[Site "https://www.chess.com"]